[Event "Panevezys Elite 2018"]
[Site "Panevezys"]
[Date "2018.07.05"]
[Round "8"]
[White "Malinin, Yuri"]
[Black "Kalinowska, Zuzanna"]
[Result "1/2-1/2"]
[ECO "A05"]
[WhiteElo "2197"]
[BlackElo "1966"]
[Annotator "NA"]
[PlyCount "56"]
[EventDate "2018.06.29"]
[EventType "swiss"]
[EventRounds "9"]
[EventCountry "LTU"]
[SourceTitle "playchess.com"]
[Source "ChessBase"]
[SourceQuality "1"]
[TimeControl "40/5400+30:1800+30"]

1. Nf3 {[%emt 0:02:42]} Nf6 {[%emt 0:00:00]} 2. c4 {[%emt 0:00:09]} Nc6 {[%emt 0:01:54]} 3. d4 {[%emt 0:01:10]} e6 {[%emt 0:00:40]} 4. a3 {[%emt 0:03:20]} d6 {[%emt 0:04:05]} 5. Nc3 {[%emt 0:12:07]} g6 {[%emt 0:04:31]} 6. d5 {[%emt 0:01:29]} Ne7 {[%emt 0:02:37]} 7. e4 {[%emt 0:00:19]} Bg7 {[%emt 0:01:40]} 8. Bg5 {[%emt 0:12:30]} h6 {[%emt 0:07:44]} 9. Be3 {[%emt 0:10:17]} O-O {[%emt 0:12:14]} 10. h3 {[%emt 0:00:42]} c6 {[%emt 0:05:15]} 11. dxe6 {[%emt 0:05:06]} Bxe6 {[%emt 0:02:52]} 12. Nd4 {[%emt 0:02:11]} d5 {[%emt 0:14:53]} 13. Qc2 {[%emt 0:05:15]} Qc8 {[%emt 0:04:03]} 14. cxd5 {[%emt 0:08:20]} cxd5 {[%emt 0:00:34]} 15. Nxe6 {[%emt 0:01:17]} Qxe6 {[%emt 0:00:39]} 16. Bd3 {[%emt 0:04:00]} Rac8 {[%emt 0:03:30]} 17. Qb3 {[%emt 0:05:46]} Rfd8 {[%emt 0:06:31]} 18. Bxa7 {[%emt 0:04:54]} dxe4 {[%emt 0:03:46]} 19. Qxe6 {[%emt 0:01:19]} fxe6 {[%emt 0:00:06]} 20. Bb5 {[%emt 0:01:33]} Nfd5 {[%emt 0:03:42]} 21. O-O {[%emt 0:01:47]} b6 {[%emt 0:02:22]} 22. Ba6 {[%emt 0:07:09]} Rxc3 {[%emt 0:04:19]} 23. bxc3 {[%emt 0:00:42]} Ra8 {[%emt 0:00:11]} 24. Bxb6 {[%emt 0:01:12]} Nxb6 {[%emt 0:01:33]} 25. Bb7 {[%emt 0:00:22]} Ra4 {[%emt 0:01:02]} 26. Rab1 {[%emt 0:00:44]} Ned5 {[%emt 0:03:55]} 27. Bxd5 {[%emt 0:02:37]} Nxd5 {[%emt 0:00:07]} 28. Rb8+ {[%emt 0:00:10]} Kf7 {[%emt 0:00:43]} 1/2-1/2

[Event "Panevezys Elite 2018"]
[Site "Panevezys"]
[Date "2018.07.05"]
[Round "8"]
[White "Berzina, Ilze"]
[Black "Ratsma, Midas"]
[Result "1-0"]
[ECO "B31"]
[WhiteElo "2169"]
[BlackElo "2253"]
[Annotator "NA"]
[PlyCount "73"]
[EventDate "2018.06.29"]
[EventType "swiss"]
[EventRounds "9"]
[EventCountry "LTU"]
[SourceTitle "playchess.com"]
[Source "ChessBase"]
[SourceQuality "1"]
[TimeControl "40/5400+30:1800+30"]

1. e4 {[%emt 0:00:00]} c5 {[%emt 0:04:10]} 2. Nf3 {[%emt 0:00:02]} Nc6 {[%emt 0:00:09]} 3. Bb5 {[%emt 0:00:32]} g6 {[%emt 0:00:05]} 4. Bxc6 {[%emt 0:07:22]} bxc6 {[%emt 0:00:13]} 5. O-O {[%emt 0:02:13]} Bg7 {[%emt 0:00:07]} 6. d3 {[%emt 0:01:27]} Rb8 {[%emt 0:09:09]} 7. Nc3 {[%emt 0:01:37]} Nh6 {[%emt 0:04:55]} 8. e5 {[%emt 0:09:45]} O-O {[%emt 0:13:21]} 9. Re1 {[%emt 0:18:21]} Nf5 {[%emt 0:02:44]} 10. Ne4 {[%emt 0:01:42]} d6 {[%emt 0:02:54]} 11. exd6 {[%emt 0:04:08]} exd6 {[%emt 0:00:25]} 12. h3 {[%emt 0:05:00]} Be6 {[%emt 0:05:45]} 13. Bg5 {[%emt 0:08:36]} Qc7 {[%emt 0:06:46]} 14. Bf4 {[%emt 0:06:13]} Rxb2 {[%emt 0:11:09]} 15. g4 {[%emt 0:00:37]} Ne7 {[%emt 0:00:55]} 16. Bxd6 {[%emt 0:00:20]} Qd7 {[%emt 0:05:53]} 17. Be5 {[%emt 0:06:54]} Bxe5 {[%emt 0:16:03]} 18. Nxe5 {[%emt 0:00:24]} Qd4 {[%emt 0:01:56]} 19. Nf3 {[%emt 0:02:07]} Qa4 {[%emt 0:02:37]} 20. Re2 {[%emt 0:05:50]} Rxa2 {[%emt 0:02:37]} 21. Rxa2 {[%emt 0:00:17]} Qxa2 {[%emt 0:00:48]} 22. Qc1 {[%emt 0:00:26]} Nd5 {[%emt 0:02:22]} 23. Re1 {[%emt 0:02:51]} Rb8 {[%emt 0:03:00]} 24. Qh6 {[%emt 0:00:27]} Rb1 {[%emt 0:00:47]} 25. c4 {[%emt 0:02:15]} Rxe1+ {[%emt 0:00:25]} 26. Nxe1 {[%emt 0:00:06]} Qa1 {[%emt 0:00:30]} 27. cxd5 {[%emt 0:02:49]} cxd5 {[%emt 0:00:31]} 28. Ng5 {[%emt 0:04:49]} Qxe1+ {[%emt 0:00:07]} 29. Kg2 {[%emt 0:00:04]} c4 {[%emt 0:02:07]} 30. Nxh7 {[%emt 0:01:19]} Qe5 {[%emt 0:00:46]} 31. g5 {[%emt 0:00:17]} f5 {[%emt 0:01:41]} 32. Nf6+ {[%emt 0:01:27]} Kf7 {[%emt 0:00:02]} 33. Qh7+ {[%emt 0:00:27]} Kf8 {[%emt 0:00:05]} 34. Qh8+ {[%emt 0:00:15]} Kf7 {[%emt 0:00:39]} 35. Qg8+ {[%emt 0:00:24]} Ke7 {[%emt 0:00:09]} 36. Qe8+ {[%emt 0:00:08]} Kd6 {[%emt 0:00:04]} 37. Qb8+ 1-0

[Event "Panevezys Elite 2018"]
[Site "Panevezys"]
[Date "2018.07.05"]
[Round "8"]
[White "Stasans, Aivars"]
[Black "Maryasin, Boris Feliksovich"]
[Result "1/2-1/2"]
[ECO "B24"]
[WhiteElo "2110"]
[BlackElo "2302"]
[Annotator "NA"]
[PlyCount "84"]
[EventDate "2018.06.29"]
[EventType "swiss"]
[EventRounds "9"]
[EventCountry "LTU"]
[SourceTitle "playchess.com"]
[Source "ChessBase"]
[SourceQuality "1"]
[TimeControl "40/5400+30:1800+30"]

1. e4 {[%emt 0:00:00]} c5 {[%emt 0:00:00]} 2. Nc3 {[%emt 0:00:00]} Nc6 {[%emt 0:00:08]} 3. Bb5 {[%emt 0:00:00]} Nd4 {[%emt 0:00:29]} 4. Bc4 {[%emt 0:00:05]} e6 {[%emt 0:00:16]} 5. Nge2 {[%emt 0:00:21]} Nf6 {[%emt 0:02:17]} 6. O-O {[%emt 0:01:16]} b5 {[%emt 0:05:07]} 7. Nxb5 {[%emt 0:18:27]} Nxb5 {[%emt 0:00:15]} 8. Bxb5 {[%emt 0:00:07]} Nxe4 {[%emt 0:00:11]} 9. d3 {[%emt 0:07:57]} Nf6 {[%emt 0:01:17]} 10. Nc3 {[%emt 0:07:50]} Bb7 {[%emt 0:01:39]} 11. Bg5 {[%emt 0:00:40]} Be7 {[%emt 0:01:33]} 12. Qe2 {[%emt 0:07:07]} O-O {[%emt 0:02:03]} 13. Ne4 {[%emt 0:01:19]} Nxe4 {[%emt 0:03:38]} 14. Bxe7 {[%emt 0:01:32]} Nc3 {[%emt 0:00:08]} 15. bxc3 {[%emt 0:05:54]} Qxe7 {[%emt 0:00:22]} 16. c4 {[%emt 0:06:58]} Rad8 {[%emt 0:03:38]} 17. f4 {[%emt 0:05:53]} f5 {[%emt 0:00:46]} 18. Qe3 {[%emt 0:03:02]} h6 {[%emt 0:02:06]} 19. c3 {[%emt 0:03:12]} g5 {[%emt 0:01:40]} 20. d4 {[%emt 0:00:14]} cxd4 {[%emt 0:06:26]} 21. cxd4 {[%emt 0:00:06]} Be4 {[%emt 0:03:24]} 22. c5 {[%emt 0:03:56]} d6 {[%emt 0:04:42]} 23. fxg5 {[%emt 0:05:29]} Qxg5 {[%emt 0:01:12]} 24. Qxg5+ {[%emt 0:00:05]} hxg5 {[%emt 0:00:05]} 25. Rfd1 {[%emt 0:01:51]} Kf7 {[%emt 0:03:55]} 26. Rac1 {[%emt 0:03:01]} Rb8 {[%emt 0:01:46]} 27. a4 {[%emt 0:00:09]} Rfd8 {[%emt 0:01:06]} 28. c6 {[%emt 0:05:27]} Rdc8 {[%emt 0:02:57]} 29. c7 {[%emt 0:00:14]} Rb7 {[%emt 0:00:24]} 30. Ba6 {[%emt 0:00:54]} Rcxc7 {[%emt 0:00:15]} 31. Bxb7 {[%emt 0:00:08]} Rxb7 {[%emt 0:00:02]} 32. Rd2 {[%emt 0:00:23]} a5 {[%emt 0:00:42]} 33. Kf2 {[%emt 0:04:49]} Kf6 {[%emt 0:00:29]} 34. g3 {[%emt 0:04:42]} Rb4 {[%emt 0:00:53]} 35. Ra1 {[%emt 0:00:09]} Bc6 {[%emt 0:01:00]} 36. Ke3 {[%emt 0:00:40]} Bxa4 {[%emt 0:01:01]} 37. Raa2 {[%emt 0:01:05]} g4 {[%emt 0:01:08]} 38. Rdb2 {[%emt 0:01:30]} Rxb2 {[%emt 0:10:15]} 39. Rxb2 {[%emt 0:00:02]} Bd7 {[%emt 0:00:26]} 40. Rb7 {[%emt 0:00:45]} Ke7 {[%emt 0:00:10]} 41. Ra7 {[%emt 0:30:07]} a4 {[%emt 0:30:02]} 42. Kf4 {[%emt 0:01:32]} Kd8 {[%emt 0:00:10] Ke4} 1/2-1/2

[Event "Panevezys Elite 2018"]
[Site "Panevezys"]
[Date "2018.07.06"]
[Round "9"]
[White "Maryasin, Boris"]
[Black "Prigodin, Ruslan"]
[Result "1/2-1/2"]
[ECO "B12"]
[WhiteElo "2302"]
[BlackElo "2036"]
[Annotator "NA"]
[PlyCount "68"]
[EventDate "2018.06.29"]
[EventType "swiss"]
[EventRounds "9"]
[EventCountry "LTU"]
[SourceTitle "playchess.com"]
[Source "ChessBase"]
[SourceQuality "1"]
[TimeControl "40/5400+30:1800+30"]

{[%evp 8,59,33,13,12,16,13,7,2,7,0,0,10,2,-1,3,32767,32767,-13,-35,7,32767,32767,8,32767,10,0,3,8,0,0,0,0,3,32767,32767,-12,0,0,32767,32767,32767,32767,32767,32767,32767,32767,0,32767,32767,32767,32767,32767,14]} 1. e4 {[%emt 0:00:00]} c6 {[%emt 0:00:00]} 2. d4 {[%emt 0:00:00]} d5 {[%emt 0:00:00]} 3. e5 {[%emt 0:00:00]} Bf5 {[%emt 0:00:00]} 4. Nf3 {[%emt 0:00:00]} e6 {[%emt 0:00:00]} 5. Be2 {[%emt 0:00:19]} c5 {[%emt 0:00:05]} 6. O-O {[%emt 0:00:20]} Nc6 {[%emt 0:00:12]} 7. Be3 {[%emt 0:00:20]} cxd4 {[%emt 0:00:20]} 8. Nxd4 {[%emt 0:00:11]} Nxd4 {[%emt 0:03:51] B12: Caro-Kann (Vorstoß-Variante)} (8... Nge7 9. Nf3 Ng6 10. c4 dxc4 11. Qa4 Qa5 12. Qxc4 Ngxe5 13. Nxe5 Nxe5 14. Qb3 Qb4 15. Nc3 a6 16. Qxb4 Bxb4 {0-1 (45) Movsesian,S (2673)-Navara,D (2725) Prague 2016}) 9. Qxd4 {[%emt 0:00:52]} Ne7 $1 {[%emt 0:00:18]} 10. Bb5+ {[%emt 0:05:39]} Nc6 {[%emt 0:00:08]} 11. Qa4 {[%emt 0:00:31] LiveBook: 4 Games} Qc7 {[%emt 0:04:13]} 12. g4 $146 {[%emt 0:00:53]} ({Vorgänger:} 12. c4 dxc4 13. Rc1 Be7 14. Nd2 O-O 15. Bxc6 bxc6 16. Nxc4 {½-½ (34) Vogt,L (2510)-Kasparov,G (2595) Baku (Azerbaijan) 1980}) 12... Bg6 $1 {[%emt 0:05:35]} 13. f4 {[%emt 0:03:29]} Be7 {[%emt 0:03:25]} 14. f5 {[%emt 0:01:11]} exf5 {[%emt 0:00:06]} 15. gxf5 {[%emt 0:00:07]} Bh5 {[%emt 0:00:25]} 16. Nc3 {[%emt 0:03:27]} O-O {[%emt 0:08:41]} 17. Nxd5 {[%emt 0:02:07]} Qxe5 {[%emt 0:01:39]} 18. Bxc6 {[%emt 0:00:55]} bxc6 {[%emt 0:00:42]} 19. Nxe7+ {[%emt 0:00:09]} Qxe7 {[%emt 0:00:09]} 20. Rae1 {[%emt 0:00:08]} Qf6 {[%emt 0:13:31]} 21. Qd4 {[%emt 0:01:42]} Qxd4 {[%emt 0:02:47]} 22. Bxd4 {[%emt 0:00:08]} f6 {[%emt 0:00:58]} 23. Re6 {[%emt 0:03:56]} Rfd8 {[%emt 0:10:48]} 24. Rf4 {[%emt 0:01:33]} Bf7 {[%emt 0:11:10]} 25. Rxc6 {[%emt 0:00:32]} Bxa2 {[%emt 0:00:48]} 26. Rc7 {[%emt 0:11:27]} Rdc8 {[%emt 0:03:55]} 27. Rd7 {[%emt 0:00:33]} Rd8 {[%emt 0:04:05]} 28. Re7 {[%emt 0:03:50]} h5 {[%emt 0:02:06]} 29. Bxa7 {[%emt 0:04:37]} Rd1+ {[%emt 0:00:38]} 30. Rf1 $11 {[%emt 0:02:44]} Rxf1+ {[%emt 0:01:51]} 31. Kxf1 {[%emt 0:00:10]} Bb1 {[%emt 0:00:05]} 32. c3 {[%emt 0:02:16]} Bxf5 {[%emt 0:00:06]} 33. Kf2 {[%emt 0:00:55]} Rd8 {[%emt 0:01:42]} 34. Bd4 {[%emt 0:00:17]} Rd7 {[%emt 0:00:35]} 1/2-1/2

[Event "Panevezys Elite 2018"]
[Site "Panevezys"]
[Date "2018.07.06"]
[Round "9"]
[White "Vovk, Ilja"]
[Black "Laurusas, Tomas"]
[Result "1/2-1/2"]
[ECO "A05"]
[WhiteElo "2273"]
[BlackElo "2453"]
[Annotator "ChessBase"]
[PlyCount "76"]
[EventDate "2018.06.29"]
[EventType "swiss"]
[EventRounds "9"]
[EventCountry "LTU"]
[SourceTitle "playchess.com"]
[Source "ChessBase"]
[SourceQuality "1"]
[TimeControl "40/5400+30:1800+30"]

1. Nf3 {[%emt 0:00:00]} Nf6 {[%emt 0:00:00]} 2. g3 {[%emt 0:00:00]} d5 {[%emt 0:00:00]} 3. Bg2 {[%emt 0:00:00]} g6 {[%emt 0:00:00]} 4. O-O {[%emt 0:00:19]} Bg7 {[%emt 0:00:02]} 5. d4 {[%emt 0:01:55]} O-O {[%emt 0:00:11]} 6. c3 {[%emt 0:00:05]} a5 {[%emt 0:04:18]} 7. c4 {[%emt 0:03:58]} dxc4 {[%emt 0:00:36]} 8. Na3 {[%emt 0:01:20]} Nc6 {[%emt 0:03:30]} 9. Nxc4 {[%emt 0:02:09]} Be6 {[%emt 0:00:04]} 10. Na3 {[%emt 0:09:46]} Qc8 {[%emt 0:25:04]} 11. Ng5 {[%emt 0:36:57]} Bf5 {[%emt 0:00:23]} 12. e4 {[%emt 0:02:23]} Bg4 {[%emt 0:00:13]} 13. f3 {[%emt 0:03:21]} Bd7 {[%emt 0:00:28]} 14. e5 {[%emt 0:02:12]} Nd5 {[%emt 0:00:11]} 15. f4 {[%emt 0:01:49]} Ncb4 {[%emt 0:01:16]} 16. Nc2 {[%emt 0:03:46]} Bg4 {[%emt 0:17:26]} 17. Qd2 {[%emt 0:00:42]} h6 {[%emt 0:09:49]} 18. Nxb4 {[%emt 0:04:46]} Nxb4 {[%emt 0:02:33]} 19. Ne4 {[%emt 0:00:12]} Rd8 {[%emt 0:01:31]} 20. Qf2 {[%emt 0:03:19]} Bh3 {[%emt 0:06:38]} 21. Be3 {[%emt 0:02:09]} Nd5 {[%emt 0:00:48]} 22. Bd2 {[%emt 0:01:05]} Bxg2 {[%emt 0:02:19]} 23. Qxg2 {[%emt 0:08:09]} f5 {[%emt 0:00:04]} 24. exf6 {[%emt 0:05:27]} Nxf6 {[%emt 0:00:22]} 25. Bc3 {[%emt 0:01:35]} b5 {[%emt 0:00:36]} 26. Nxf6+ {[%emt 0:02:42]} exf6 {[%emt 0:00:32]} 27. a3 {[%emt 0:01:29]} f5 {[%emt 0:00:54]} 28. d5 {[%emt 0:00:49]} Bxc3 {[%emt 0:00:13]} 29. bxc3 {[%emt 0:00:01]} Qd7 {[%emt 0:00:09]} 30. Rad1 {[%emt 0:00:35]} Ra6 {[%emt 0:00:05]} 31. Rfe1 {[%emt 0:01:36]} Rd6 {[%emt 0:01:25]} 32. Re5 {[%emt 0:00:04]} c6 {[%emt 0:00:24]} 33. Qh3 {[%emt 0:00:54]} Rxd5 {[%emt 0:05:56]} 34. Rdxd5 {[%emt 0:00:31]} cxd5 {[%emt 0:00:02]} 35. Qxh6 {[%emt 0:00:31]} Qc6 {[%emt 0:02:24]} 36. Qg5 {[%emt 0:00:37]} Rf8 {[%emt 0:04:45]} 37. Qe7 {[%emt 0:00:14]} Qxc3 {[%emt 0:01:00]} 38. Qe6+ {[%emt 0:00:19]} Kg7 1/2-1/2

[Event "Panevezys Elite 2018"]
[Site "Panevezys"]
[Date "2018.07.06"]
[Round "9"]
[White "Parligras, Cosmin"]
[Black "Bjerre, Jonas Buhl"]
[Result "1/2-1/2"]
[ECO "E10"]
[WhiteElo "2231"]
[BlackElo "2436"]
[Annotator "ChessBase"]
[PlyCount "91"]
[EventDate "2018.06.29"]
[EventType "swiss"]
[EventRounds "9"]
[EventCountry "LTU"]
[SourceTitle "playchess.com"]
[Source "ChessBase"]
[SourceQuality "1"]
[TimeControl "40/5400+30:1800+30"]

1. d4 {[%emt 0:00:31]} Nf6 {[%emt 0:00:00]} 2. c4 {[%emt 0:00:07]} e6 {[%emt 0:00:00]} 3. Nf3 {[%emt 0:00:07]} c5 {[%emt 0:00:10]} 4. Nc3 {[%emt 0:00:50]} cxd4 {[%emt 0:00:12]} 5. Nxd4 {[%emt 0:00:07]} Bb4 {[%emt 0:00:40]} 6. Qc2 {[%emt 0:04:08]} O-O {[%emt 0:02:09]} 7. e3 {[%emt 0:01:51]} b6 {[%emt 0:06:39]} 8. Be2 {[%emt 0:01:30]} Bb7 {[%emt 0:00:36]} 9. O-O {[%emt 0:00:08]} Nc6 {[%emt 0:03:49]} 10. Nxc6 {[%emt 0:02:12]} Bxc6 {[%emt 0:01:03]} 11. a3 {[%emt 0:01:00]} Be7 {[%emt 0:03:16]} 12. e4 {[%emt 0:08:41]} Qc7 {[%emt 0:03:21]} 13. Be3 {[%emt 0:00:22]} Bc5 {[%emt 0:07:02]} 14. Qd3 {[%emt 0:04:45]} Rad8 {[%emt 0:05:21]} 15. b4 {[%emt 0:14:02]} Bxe3 {[%emt 0:01:08]} 16. Qxe3 {[%emt 0:00:08]} d5 {[%emt 0:02:40]} 17. cxd5 {[%emt 0:00:32]} exd5 {[%emt 0:00:26]} 18. Nxd5 {[%emt 0:00:32]} Nxd5 {[%emt 0:03:28]} 19. exd5 {[%emt 0:00:06]} Bxd5 {[%emt 0:00:22]} 20. Qg3 {[%emt 0:10:01]} Qe7 {[%emt 0:02:59]} 21. Bf3 {[%emt 0:04:47]} a5 {[%emt 0:09:23]} 22. bxa5 {[%emt 0:10:53]} bxa5 {[%emt 0:00:35]} 23. Bxd5 {[%emt 0:00:32]} Rxd5 {[%emt 0:00:06]} 24. Rfd1 {[%emt 0:01:30]} Qd7 {[%emt 0:06:01]} 25. Qb3 {[%emt 0:04:10]} Rd8 {[%emt 0:00:56]} 26. Qxd5 {[%emt 0:00:40]} Qxd5 {[%emt 0:00:07]} 27. Rxd5 {[%emt 0:00:05]} Rxd5 {[%emt 0:00:06]} 28. Kf1 {[%emt 0:00:08]} Kf8 {[%emt 0:00:53]} 29. Ke2 {[%emt 0:02:58]} Ke7 {[%emt 0:01:47]} 30. Rd1 {[%emt 0:06:44]} Rb5 {[%emt 0:06:14]} 31. Ke3 {[%emt 0:01:13]} Ke6 {[%emt 0:00:35]} 32. Rd3 {[%emt 0:02:51]} g5 {[%emt 0:04:04]} 33. h3 {[%emt 0:02:20]} f5 {[%emt 0:01:02]} 34. g3 {[%emt 0:08:33]} h5 {[%emt 0:04:43]} 35. f4 {[%emt 0:05:09]} g4 {[%emt 0:00:29]} 36. h4 {[%emt 0:00:37]} Rb1 {[%emt 0:01:23]} 37. Kd4 {[%emt 0:01:14]} Rf1 {[%emt 0:01:34]} 38. Re3+ {[%emt 0:00:42]} Kd6 {[%emt 0:01:49]} 39. Re5 {[%emt 0:00:08]} Rd1+ {[%emt 0:02:24]} 40. Kc4 {[%emt 0:00:16]} Rc1+ {[%emt 0:01:40]} 41. Kb5 {[%emt 0:30:45]} Rc3 {[%emt 0:30:36]} 42. a4 {[%emt 0:00:00]} Rxg3 {[%emt 0:00:00]} 43. Rxf5 {[%emt 0:00:00]} Rd3 {[%emt 0:00:00]} 44. Kc4 {[%emt 0:00:00]} Rf3 {[%emt 0:00:00]} 45. Kb5 {[%emt 0:00:00]} Rd3 {[%emt 0:00:00]} 46. Kc4 {[%emt 0:00:00] Ke5} 1/2-1/2

[Event "Panevezys Elite 2018"]
[Site "Panevezys"]
[Date "2018.07.06"]
[Round "9"]
[White "Priyanka, Nutakki"]
[Black "Brazdzionis, Andrius"]
[Result "1/2-1/2"]
[ECO "B07"]
[WhiteElo "2181"]
[BlackElo "2283"]
[Annotator "ChessBase"]
[PlyCount "20"]
[EventDate "2018.06.29"]
[EventType "swiss"]
[EventRounds "9"]
[EventCountry "LTU"]
[SourceTitle "playchess.com"]
[Source "ChessBase"]
[SourceQuality "1"]
[TimeControl "40/5400+30:1800+30"]

1. e4 {[%emt 0:00:00]} d6 {[%emt 0:00:00]} 2. d4 {[%emt 0:00:00]} Nf6 {[%emt 0:00:00]} 3. Nc3 {[%emt 0:00:01]} g6 {[%emt 0:00:01]} 4. h3 {[%emt 0:00:14]} Bg7 {[%emt 0:00:12]} 5. Be3 {[%emt 0:00:14]} O-O {[%emt 0:01:31]} 6. Qd2 {[%emt 0:00:18]} c6 {[%emt 0:00:18]} 7. g4 {[%emt 0:01:23]} d5 {[%emt 0:09:53]} 8. e5 {[%emt 0:04:02]} Ne4 {[%emt 0:00:32]} 9. Nxe4 {[%emt 0:01:57]} dxe4 {[%emt 0:00:03]} 10. Bg2 {[%emt 0:03:46]} f5 {[%emt 0:00:34]} 1/2-1/2

[Event "Panevezys Elite 2018"]
[Site "Panevezys"]
[Date "2018.07.06"]
[Round "9"]
[White "Stasans, Aivars"]
[Black "Malinin, Yuri"]
[Result "1/2-1/2"]
[ECO "B24"]
[WhiteElo "2110"]
[BlackElo "2197"]
[Annotator "ChessBase"]
[PlyCount "84"]
[EventDate "2018.06.29"]
[EventType "swiss"]
[EventRounds "9"]
[EventCountry "LTU"]
[SourceTitle "playchess.com"]
[Source "ChessBase"]
[SourceQuality "1"]
[TimeControl "40/5400+30:1800+30"]

1. e4 {[%emt 0:00:00]} c5 {[%emt 0:08:22]} 2. Nc3 {[%emt 0:00:00]} Nc6 {[%emt 0:00:18]} 3. Bb5 {[%emt 0:00:00]} Nd4 {[%emt 0:00:11]} 4. Bc4 {[%emt 0:00:00]} a6 {[%emt 0:00:24]} 5. a4 {[%emt 0:01:42]} e6 {[%emt 0:01:22]} 6. d3 {[%emt 0:03:12]} Nf6 {[%emt 0:00:56]} 7. f4 {[%emt 0:14:35]} d5 {[%emt 0:06:59]} 8. Ba2 {[%emt 0:00:16]} dxe4 {[%emt 0:01:00]} 9. dxe4 {[%emt 0:00:23]} b5 {[%emt 0:00:43]} 10. Nf3 {[%emt 0:13:23]} b4 {[%emt 0:14:34]} 11. Ne2 {[%emt 0:09:04]} Nxe4 {[%emt 0:02:32]} 12. Nexd4 {[%emt 0:00:09]} cxd4 {[%emt 0:00:12]} 13. Qxd4 {[%emt 0:00:18]} Bb7 {[%emt 0:00:21]} 14. Qxd8+ {[%emt 0:00:58]} Rxd8 {[%emt 0:00:25]} 15. Be3 {[%emt 0:00:02]} Bc5 {[%emt 0:01:46]} 16. Ke2 {[%emt 0:09:02]} a5 {[%emt 0:10:04]} 17. Bc4 {[%emt 0:00:25]} Ke7 {[%emt 0:00:34]} 18. Rhd1 {[%emt 0:07:12]} Bxe3 {[%emt 0:01:02]} 19. Kxe3 {[%emt 0:00:06]} Nc5 {[%emt 0:00:25]} 20. Bb5 {[%emt 0:06:27]} h6 {[%emt 0:13:47]} 21. g3 {[%emt 0:06:04]} Bxf3 {[%emt 0:03:29]} 22. Kxf3 {[%emt 0:00:10]} g5 {[%emt 0:00:22]} 23. Ke3 {[%emt 0:09:27]} f6 {[%emt 0:02:57]} 24. c3 {[%emt 0:06:07]} bxc3 {[%emt 0:06:20]} 25. bxc3 {[%emt 0:00:36]} gxf4+ {[%emt 0:00:10]} 26. gxf4 {[%emt 0:00:11]} Rhg8 {[%emt 0:00:35]} 27. Rg1 {[%emt 0:01:53]} h5 {[%emt 0:02:09]} 28. Rab1 {[%emt 0:04:03]} Rg4 {[%emt 0:05:12]} 29. h3 {[%emt 0:02:24]} Rgg8 {[%emt 0:06:14]} 30. Bc4 Nxa4 31. Rb7+ Kd6 32. Rd1+ Kc6 33. Rxd8 Rxd8 34. Rh7 Nxc3 35. Bxe6 Re8 36. f5 a4 37. Rxh5 a3 38. Kd3 a2 39. Bxa2 Nxa2 40. Rh6 Rf8 41. Rh4 Nc1+ 42. Kd2 Nb3+ 1/2-1/2

[Event "Panevezys Elite 2018"]
[Site "Panevezys"]
[Date "2018.07.06"]
[Round "9"]
[White "Bekasovs, Rihards"]
[Black "Badelka, Olga"]
[Result "0-1"]
[ECO "A46"]
[WhiteElo "2052"]
[BlackElo "2407"]
[Annotator "ChessBase"]
[PlyCount "114"]
[EventDate "2018.06.29"]
[EventType "swiss"]
[EventRounds "9"]
[EventCountry "LTU"]
[SourceTitle "playchess.com"]
[Source "ChessBase"]
[SourceQuality "1"]
[TimeControl "40/5400+30:1800+30"]

1. d4 {[%emt 0:00:00]} Nf6 {[%emt 0:00:00]} 2. Nf3 {[%emt 0:00:08]} e6 {[%emt 0:00:00]} 3. e3 {[%emt 0:01:52]} b6 {[%emt 0:00:29]} 4. Bd3 {[%emt 0:02:02]} Bb7 {[%emt 0:00:06]} 5. O-O {[%emt 0:00:10]} d5 {[%emt 0:00:50]} 6. c4 {[%emt 0:00:43]} Bd6 {[%emt 0:00:21]} 7. cxd5 {[%emt 0:01:40]} exd5 {[%emt 0:00:39]} 8. Nc3 {[%emt 0:00:35]} a6 {[%emt 0:00:15]} 9. b3 {[%emt 0:00:53]} O-O {[%emt 0:00:25]} 10. Bb2 {[%emt 0:00:18]} Nbd7 {[%emt 0:01:55]} 11. Rc1 {[%emt 0:03:42]} Ne4 {[%emt 0:00:53]} 12. Qc2 {[%emt 0:20:42]} Re8 {[%emt 0:05:13]} 13. Ne2 {[%emt 0:04:29]} Rc8 {[%emt 0:02:31]} 14. Ng3 {[%emt 0:08:33]} Qf6 {[%emt 0:02:06]} 15. Nd2 {[%emt 0:02:38]} Nxg3 {[%emt 0:15:02]} 16. hxg3 {[%emt 0:00:33]} Qh6 {[%emt 0:00:18]} 17. Bf5 {[%emt 0:03:21]} Rcd8 {[%emt 0:00:23]} 18. e4 {[%emt 0:03:03]} dxe4 {[%emt 0:05:36]} 19. Nxe4 {[%emt 0:02:43]} Bxe4 {[%emt 0:01:28]} 20. Bxe4 {[%emt 0:00:09]} Nf6 {[%emt 0:00:11]} 21. Bf3 {[%emt 0:00:17]} Qg5 {[%emt 0:00:20]} 22. Rfe1 {[%emt 0:03:01]} h5 {[%emt 0:02:20]} 23. Rxe8+ {[%emt 0:03:03]} Rxe8 {[%emt 0:01:31]} 24. Bc3 {[%emt 0:00:12]} Ng4 {[%emt 0:08:36]} 25. Bd2 {[%emt 0:04:38]} Qf6 {[%emt 0:01:08]} 26. Qd3 {[%emt 0:00:33]} a5 {[%emt 0:02:51]} 27. Re1 {[%emt 0:05:19]} Rxe1+ {[%emt 0:00:40]} 28. Bxe1 {[%emt 0:00:01]} g6 {[%emt 0:01:17]} 29. Bd2 {[%emt 0:00:23]} Qe6 {[%emt 0:01:32]} 30. Qe4 {[%emt 0:08:23]} Qxe4 {[%emt 0:00:54]} 31. Bxe4 {[%emt 0:00:09]} Nf6 {[%emt 0:03:25]} 32. Bc6 {[%emt 0:00:26]} Kg7 {[%emt 0:03:04]} 33. Kf1 {[%emt 0:01:18]} Ng8 {[%emt 0:00:08]} 34. Ke2 {[%emt 0:01:39]} Ne7 {[%emt 0:00:13]} 35. Be4 {[%emt 0:02:43]} Kf6 {[%emt 0:02:35]} 36. Kd3 {[%emt 0:00:36]} g5 {[%emt 0:01:15]} 37. Bf3 {[%emt 0:03:42]} g4 {[%emt 0:00:27]} 38. Be4 {[%emt 0:00:11]} Ke6 {[%emt 0:00:49]} 39. Kc4 {[%emt 0:10:35]} f5 {[%emt 0:00:05]} 40. Bd3 {[%emt 0:02:54]} c6 {[%emt 0:04:38]} 41. a4 {[%emt 0:31:34]} Nd5 {[%emt 0:33:12]} 42. Be2 {[%emt 0:00:00]} Bb4 {[%emt 0:00:00]} 43. Bxb4 {[%emt 0:00:00]} Nxb4 {[%emt 0:00:00]} 44. Kc3 {[%emt 0:00:00]} Kf6 {[%emt 0:00:00]} 45. Bc4 {[%emt 0:00:00]} Kg5 {[%emt 0:00:00]} 46. Kd2 {[%emt 0:00:00]} f4 {[%emt 0:00:00]} 47. Be6 {[%emt 0:00:00]} h4 {[%emt 0:00:00]} 48. gxh4+ {[%emt 0:00:00]} Kxh4 {[%emt 0:00:00]} 49. Bd7 {[%emt 0:00:00]} g3 {[%emt 0:00:00]} 50. f3 {[%emt 0:00:00]} Kg5 {[%emt 0:00:00]} 51. Be6 {[%emt 0:00:00]} Kf6 {[%emt 0:00:00]} 52. Bg8 {[%emt 0:00:00]} Ke7 {[%emt 0:00:00]} 53. Kc3 {[%emt 0:00:00]} Kd6 {[%emt 0:00:00]} 54. Bf7 {[%emt 0:00:00]} b5 {[%emt 0:00:59]} 55. Bg8 {[%emt 0:00:00]} Nd5+ {[%emt 0:00:48]} 56. Bxd5 {[%emt 0:04:04]} Kxd5 {[%emt 0:00:04]} 57. Kd3 {[%emt 0:00:27]} b4 {[%emt 0:00:04]} 0-1